Department family,Entity,Date,Expense type,Expense area,Supplier,Transaction number, Amount ,,
Rbh - Pharmacy,Rbh - Pharmacy,11/12/2014,Comp S Ware Purch Non-Capital,Diagnostic & Clinical Support,Ascribe Ltd,1179803,"35,000.00",,
Rbh - Endoscopy,Rbh - Endoscopy,23/12/2014,Med & Surg Endoscopic Equip.,Surgical & Anaes Services,Boston Scientific Ltd (Christine Morin),1181858,"30,652.75",,
Balance Sheet,Balance Sheet,11/12/2014,Day Nursery Fees,Non Directorate,Calderstones Partnership Nhs Foundation Trust,52903,"47,483.61",,
Pfi Contract Bgh,Pfi Contract Bgh,17/12/2014,Tariff Payment,Estates & Facilities,Catalyst Healthcare (Burnley) Ltd,1181430,"387,221.32",,
Discharge Facilities,Discharge Facilities,11/12/2014,Consultancy Services,Clinical Flow,Chs Healthcare (Chs),1179573,"33,200.00",,
Pfi Contract - Rbh,Pfi Contract - Rbh,02/12/2014,Tariff Payment,Estates & Facilities,Consort Healthcare Blackburn Ltd,1177736,"1,457,298.38",,
Energy Bgh,Energy Bgh,09/12/2014,Gas - Boiler Fuel,Estates & Facilities,Gazprom Marketing & Trading Retail Ltd,1178727,"29,199.72",,
Rbh - Staff Accommodation,Rbh - Staff Accommodation,11/12/2014,Gas - Domestic,Estates & Facilities,Gazprom Marketing & Trading Retail Ltd,1179509,-151.63,,
Rbh - Staff Accommodation,Rbh - Staff Accommodation,11/12/2014,Gas - Domestic,Estates & Facilities,Gazprom Marketing & Trading Retail Ltd,1179510,-68.96,,
Rbh - Staff Accommodation,Rbh - Staff Accommodation,11/12/2014,Gas - Domestic,Estates & Facilities,Gazprom Marketing & Trading Retail Ltd,1179995,-62.96,,
Rbh - Staff Accommodation,Rbh - Staff Accommodation,23/12/2014,Gas - Domestic,Estates & Facilities,Gazprom Marketing & Trading Retail Ltd,1182322,-82.67,,
Comm - Clitheroe Physio E & U,Comm - Clitheroe Physio E & U,18/12/2014,Gas - Domestic,Estates & Facilities,Gazprom Marketing & Trading Retail Ltd,1181369,-75.59,,
Comm - Clitheroe Physio E & U,Comm - Clitheroe Physio E & U,18/12/2014,Gas - Domestic,Estates & Facilities,Gazprom Marketing & Trading Retail Ltd,1181370,-100.13,,
Bgh Pharmacy,Bgh Pharmacy,23/12/2014,Drugs - Budget,Diagnostic & Clinical Support,Healthcare At Home Ltd,1180964,"33,805.44",,
Bgh Pharmacy,Bgh Pharmacy,23/12/2014,Drugs - Budget,Diagnostic & Clinical Support,Healthcare At Home Ltd,1180965,"38,735.40",,
Bgh Pharmacy,Bgh Pharmacy,23/12/2014,Drugs - Budget,Diagnostic & Clinical Support,Healthcare At Home Ltd,1180966,"33,101.16",,
Bgh Pharmacy,Bgh Pharmacy,23/12/2014,Drugs - Budget,Diagnostic & Clinical Support,Healthcare At Home Ltd,1180967,"38,031.12",,
Bgh Pharmacy,Bgh Pharmacy,23/12/2014,Drugs - Budget,Diagnostic & Clinical Support,Healthcare At Home Ltd,1180969,"40,848.24",,
Bgh Pharmacy,Bgh Pharmacy,23/12/2014,Drugs - Budget,Diagnostic & Clinical Support,Healthcare At Home Ltd,1180970,"210,925.00",,
Bgh Pharmacy,Bgh Pharmacy,23/12/2014,Drugs - Budget,Diagnostic & Clinical Support,Healthcare At Home Ltd,1180971,"-1,430.00",,
Bgh Pharmacy,Bgh Pharmacy,23/12/2014,Drugs - Budget,Diagnostic & Clinical Support,Healthcare At Home Ltd,1180972,"-1,430.00",,
Informatics Programme Mgmt,Informatics Programme Mgmt,23/12/2014,Other Computer Costs Maint,Finance & Informatics,Hospedia Ltd,1181823,"105,000.00",,
Pro Elh Lancs T H Ft,Pro Elh Lancs T H Ft,23/12/2014,Test Referrals,Diagnostic & Clinical Support,Lancashire Teaching Hospitals Nhs Foundation,52989,"28,010.95",,
Pro Elh Lancs T H Ft,Pro Elh Lancs T H Ft,23/12/2014,Test Referrals,Diagnostic & Clinical Support,Lancashire Teaching Hospitals Nhs Foundation,52990,"32,538.87",,
Bgh Pharmacy,Bgh Pharmacy,02/12/2014,Drugs - Budget,Diagnostic & Clinical Support,Lancashire Teaching Hospitals Nhs Foundation,52845,-225.6,,
Rbh - Pharmacy,Rbh - Pharmacy,09/12/2014,Drugs - Budget,Diagnostic & Clinical Support,Lancashire Teaching Hospitals Nhs Foundation,52879,-205,,
Rbh - Pharmacy,Rbh - Pharmacy,09/12/2014,Drugs - Budget,Diagnostic & Clinical Support,Lancashire Teaching Hospitals Nhs Foundation,52881,-97.9,,
Rbh - Pharmacy,Rbh - Pharmacy,09/12/2014,Drugs - Budget,Diagnostic & Clinical Support,Lancashire Teaching Hospitals Nhs Foundation,52883,-184.8,,
Elht Blood Budget,Elht Blood Budget,23/12/2014,Test Referrals,Diagnostic & Clinical Support,Nhs Blood And Transplant,52982,"41,972.75",,
East Lancs Breast Screening,East Lancs Breast Screening,16/12/2014,X-Ray Equip Maint Contracts,Diagnostic & Clinical Support,Nhs Supply Chain,52938,"88,314.58",,
Balance Sheet,Balance Sheet,11/12/2014,Resus Cross Charge,Non Directorate,Nhs Supply Chain,52900,"180,812.95",,
Balance Sheet,Balance Sheet,23/12/2014,Resus Cross Charge,Non Directorate,Nhs Supply Chain,52991,"205,691.53",,
Balance Sheet,Balance Sheet,23/12/2014,Resus Cross Charge,Non Directorate,Nhs Supply Chain,52992,"167,992.52",,
Balance Sheet,Balance Sheet,23/12/2014,Resus Cross Charge,Non Directorate,Nhs Supply Chain,52994,"203,292.14",,
Balance Sheet,Balance Sheet,23/12/2014,Resus Cross Charge,Non Directorate,Nhs Supply Chain,52996,"209,779.40",,
Balance Sheet,Balance Sheet,23/12/2014,Resus Cross Charge,Non Directorate,Nhs Supply Chain,52997,"200,322.03",,
Rbh - Pharmacy,Rbh - Pharmacy,04/12/2014,Drugs - Budget,Diagnostic & Clinical Support,Novartis Pharmaceuticals Uk Ltd,1176604,"54,190.98",,
Balance Sheet,Balance Sheet,23/12/2014,Additions (P) - Auc,Non Directorate,Orion Health Ltd,20731,"45,896.88",,
Elht-Blood Sciences,Elht-Blood Sciences,23/12/2014,Test Kits - (Misc),Diagnostic & Clinical Support,Ortho Clinical Diagnostics,1180372,"75,151.78",,
Rbh - Pharmacy,Rbh - Pharmacy,02/12/2014,Drugs - Budget,Diagnostic & Clinical Support,Roche Products Ltd,1176593,"43,961.89",,
Rbh - Pharmacy,Rbh - Pharmacy,11/12/2014,Drugs - Budget,Diagnostic & Clinical Support,Roche Products Ltd,1179209,"41,424.98",,
Director Of Finance,Director Of Finance,11/12/2014,Internal Audit Fees,Finance & Informatics,Royal Liverpool And Broadgreen University Hos,52904,"33,724.50",,
Rbh Theatres,Rbh Theatres,11/12/2014,Med & Surg Equipment,Surgical & Anaes Services,Shawbrook Asset Finance,1180754,"32,737.57",,
Elht - Ambulance Services,Elht - Ambulance Services,24/12/2014,Transport - All Other Exp.,Clinical Flow,Trust Medical,1183234,"40,000.00",,
Energy Bgh,Energy Bgh,02/12/2014,Water  & Sewerage,Estates & Facilities,United Utilities,1177713,"31,596.64",,
,,,,,,Total ,"4,273,799.84",,
